[Event "FIDE WCCC U10 2018"]
[Site "Santiago de Compostela"]
[Date "2018.11.12"]
[Round "8"]
[White "Kadam Om Manish"]
[Black "Kolesov, Gordey"]
[Result "1-0"]
[ECO "C44"]
[WhiteElo "2025"]
[BlackElo "1823"]
[Annotator "NA RC"]
[PlyCount "151"]
[EventDate "2018.11.04"]
[EventType "swiss"]
[EventCountry "ESP"]
[SourceTitle "playchess.com"]
[Source "ChessBase"]
[SourceQuality "1"]
[TimeControl "40/5400+30:1800+30"]

{[%evp 8,147,20,7,13,20,15,14,27,16,27,25,16,14,31,23,24,18,45,18,14,16,71,73,102,32767,50,25,67,14,27,6,17,7,33,7,9,4,0,-5,-4,-25,-11,-22,-11,-21,-17,-10,0,-27,-27,-16,0,0,17,3,0,32767,13,12,27,32767,29,9,54,32767,48,0,58,32767,56,54,52,48,53,51,32767,32767,32767,180,196,225,400,264,1625,32767,32767,32767,32767,32767,32767,32767,32767,32767,32767,32767,32767,32767,32767,32767,32767,32767,32767,32767,32767,32767,32767,32767,32767,32767,32767,32767,32767,32767,32767,32767,32767,29987,32767,32767,29988,29989,32767,32767,12847,1127,5406,29954,29972,2291,1108,12845,12849,29986,29986,29987,29993,29994,29996,29997,29997,29997]} 1. e4 {[%emt 0:00:00]} e5 {[%emt 0:00:00]} 2. Nf3 {[%emt 0:00:00]} Nc6 {[%emt 0:00:00]} 3. g3 {[%emt 0:00:04]} Nf6 {[%emt 0:01:34]} 4. d3 {[%emt 0:00:07]} Be7 {[%emt 0:03:44]} 5. Bg2 {[%emt 0:00:09]} d5 {[%emt 0:01:37]} 6. exd5 {[%emt 0:01:19]} Nxd5 {[%emt 0:01:14]} 7. O-O {[%emt 0:00:46] C44: Ponziani Opening and Scotch Gambit} O-O {[%emt 0:01:00]} 8. Re1 {[%emt 0:03:23]} Bf6 {[%emt 0:02:20] LiveBook: 10 Games} 9. Nc3 {[%emt 0:05:01]} (9. Nbd2 Re8 10. a3 a5 11. Ne4 Be7 12. Nc3 Nxc3 13. bxc3 Be6 14. Rb1 Rb8 {½-½ (36) Zvjaginsev,V (2643)-Gagare,S (2490) St Petersburg 2018}) 9... Nxc3 {[%emt 0:04:07]} 10. bxc3 {[%emt 0:00:08]} Bf5 {[%emt 0:03:49]} 11. Ba3 {[%emt 0:02:51]} Re8 {[%emt 0:00:55]} 12. Nd2 {[%emt 0:00:40]} Rb8 {[%emt 0:11:52]} 13. Rb1 {[%emt 0:01:21]} Qd7 {[%emt 0:02:57]} 14. Ne4 {[%emt 0:11:28]} Bxe4 $146 {[%emt 0:00:43]} ({Predecessor:} 14... Be7 $11 {remains equal.} 15. Nc5 Bxc5 16. Bxc5 b6 17. Ba3 f6 18. Qf3 Ne7 19. Bxe7 Rxe7 {½-½ (39) Cosma,E (2360)-Foisor,C (2400) Baile Tusnad 1997}) 15. Bxe4 {[%emt 0:00:24]} b6 {[%emt 0:06:30]} 16. Qf3 {[%emt 0:02:12]} Ne7 {[%emt 0:02:26]} 17. Bc1 {[%emt 0:09:40]} Rbd8 {[%emt 0:01:16]} 18. Bd2 {[%emt 0:05:13]} ({White should try} 18. g4 $16) 18... Qa4 {[%emt 0:04:20]} 19. Qd1 {[%emt 0:03:29]} c5 {[%emt 0:02:28]} 20. c4 {[%emt 0:01:28]} Nc6 {[%emt 0:01:34]} 21. Qh5 {[%emt 0:11:08]} g6 {[%emt 0:02:07]} 22. Qf3 {[%emt 0:00:01]} Rd6 {[%emt 0:00:01]} 23. c3 {[%emt 0:00:29]} Ne7 {[%emt 0:04:06]} 24. Be3 {[%emt 0:01:34]} Bg7 {[%emt 0:02:58]} 25. Qe2 {[%emt 0:01:01]} Red8 {[%emt 0:02:39]} 26. Rbd1 {[%emt 0:02:02]} Qd7 {[%emt 0:01:02]} 27. Qc2 {[%emt 0:01:55]} Kh8 {[%emt 0:01:09]} 28. Qc1 {[%emt 0:00:45]} f5 {[%emt 0:00:13]} 29. Bf3 $1 {[%emt 0:00:01]} Qa4 ({Avoid the trap} 29... Rxd3 $2 30. Rxd3 Qxd3 31. Rd1 $18) 30. Bg5 {[%emt 0:02:28]} Qe8 {[%emt 0:11:58]} 31. Bxe7 {[%emt 0:00:05]} Qxe7 {[%emt 0:00:05]} 32. Bd5 {[%emt 0:00:01]} Qf6 {[%emt 0:02:16]} 33. Re2 {[%emt 0:03:09]} g5 {[%emt 0:02:32]} 34. f3 {[%emt 0:00:46]} f4 {[%emt 0:03:22]} 35. g4 {[%emt 0:00:32]} Qh6 {[%emt 0:01:27]} (35... e4 $5) 36. Rde1 {[%emt 0:00:33]} Qh3 {[%emt 0:00:54]} 37. Be4 {[%emt 0:01:02]} Rh6 {[%emt 0:06:25]} 38. Qa3 {[%emt 0:09:18]} a5 {[%emt 0:02:01]} 39. Qb3 {[%emt 0:00:16]} Rhd6 {[%emt 0:01:10]} 40. Qc2 {[%emt 0:00:00]} Bf6 {[%emt 0:00:00]} 41. Rg2 {[%emt 0:02:53]} Rg8 {[%emt 0:02:05]} 42. Bd5 {[%emt 0:01:32]} Rg7 {[%emt 0:02:48] [#]} 43. d4 $1 {[%emt 0:01:03]} cxd4 {[%emt 0:08:18]} 44. cxd4 {[%emt 0:00:01]} Re7 $2 {[%emt 0:00:08]} (44... Rxd5 $16 {was called for.} 45. cxd5 e4) 45. dxe5 {[%emt 0:05:15]} Bxe5 $2 {[%emt 0:01:02]} (45... Rd8 46. Qb2 Rb8) 46. Rxe5 {[%emt 0:00:15]} Rxe5 {[%emt 0:00:01]} 47. Qc3 {[%emt 0:00:08]} Qh6 {[%emt 0:00:50]} 48. Qxe5+ {[%emt 0:00:11]} Qf6 {[%emt 0:00:00]} 49. Qxf6+ {[%emt 0:00:17]} Rxf6 {[%emt 0:00:01]} 50. Re2 {[%emt 0:00:00]} Rd6 {[%emt 0:00:32]} 51. Re6 {[%emt 0:00:02]} Rd8 {[%emt 0:00:46]} 52. Rxb6 {[%emt 0:00:04]} Re8 {[%emt 0:00:03]} 53. Kf2 {[%emt 0:00:02]} Re3 {[%emt 0:00:14]} 54. Rb2 {[%emt 0:00:43]} Rd3 {[%emt 0:00:25]} 55. Rc2 {[%emt 0:00:16]} a4 {[%emt 0:00:07]} 56. Be4 {[%emt 0:00:02]} Rd7 {[%emt 0:00:07]} 57. c5 {[%emt 0:00:03]} a3 {[%emt 0:00:07]} 58. c6 {[%emt 0:00:02]} Rc7 {[%emt 0:00:04]} 59. Rc3 {[%emt 0:00:34]} h5 {[%emt 0:00:03]} 60. Rxa3 {[%emt 0:00:08]} hxg4 {[%emt 0:00:05]} 61. fxg4 {[%emt 0:00:01]} f3 {[%emt 0:00:10]} 62. Rb3 {[%emt 0:00:07]} Re7 {[%emt 0:00:20]} 63. Rb8+ {[%emt 0:00:04]} Kg7 {[%emt 0:00:05]} 64. Rb7 {[%emt 0:00:00]} Kh6 {[%emt 0:00:08]} 65. c7 {[%emt 0:00:36]} Rxc7 {[%emt 0:00:18]} 66. Bxf3 {[%emt 0:00:37]} (66. a4 $142 Re7 67. Ke3 Rxb7 68. Bxb7 Kg6 69. Bxf3 Kf6 70. Kd4 Ke6 71. a5) 66... Rc2+ {[%emt 0:00:22]} 67. Kg3 {[%emt 0:00:06]} Rc4 {[%emt 0:00:06]} 68. h4 {[%emt 0:00:13]} gxh4+ {[%emt 0:00:08]} 69. Kxh4 {[%emt 0:00:08]} Rc5 {[%emt 0:00:40] [#]} 70. g5+ $1 {[%emt 0:00:08]} Rxg5 {[%emt 0:00:07]} 71. Rb6+ {[%emt 0:00:01]} Kg7 {[%emt 0:00:07]} 72. Kxg5 {[%emt 0:00:06]} Kh7 {[%emt 0:00:05]} 73. Be4+ {[%emt 0:00:06]} Kg7 {[%emt 0:00:05]} 74. Rb7+ {[%emt 0:00:03]} Kf8 {[%emt 0:00:05]} 75. Bg6 {[%emt 0:00:06]} Kg8 {[%emt 0:00:05]} 76. Kf6 {[%emt 0:00:03]} 1-0

[Event "FIDE WCCC U10 2018"]
[Site "Santiago de Compostela"]
[Date "2018.11.12"]
[Round "8"]
[White "Xiao, Tong"]
[Black "Seemann, Jakub"]
[Result "1-0"]
[ECO "B92"]
[WhiteElo "2022"]
[BlackElo "1869"]
[Annotator "NA RC"]
[PlyCount "91"]
[EventDate "2018.11.04"]
[EventType "swiss"]
[EventCountry "ESP"]
[SourceTitle "playchess.com"]
[Source "ChessBase"]
[SourceQuality "1"]
[TimeControl "40/5400+30:1800+30"]

{[%evp 9,90,26,34,32,27,25,16,19,21,32767,32767,32767,32767,32767,-12,-16,-12,-17,-11,-25,0,0,0,3,-6,0,43,12,100,91,492,32767,32767,32767,60,69,80,93,97,9,96,10,18,11,19,32767,18,20,26,17,32767,32767,65,32767,32767,32767,32767,32767,131,32767,32767,114,166,189,32767,32767,32767,32767,32767,210,273,356,393,386,395,298,32767,32767,32767,560,540,626,651]} 1. e4 c5 {[%emt 0:00:00]} 2. Nf3 {[%emt 0:00:11]} d6 {[%emt 0:00:00]} 3. d4 {[%emt 0:00:35]} cxd4 {[%emt 0:00:00]} 4. Nxd4 {[%emt 0:00:07]} Nf6 {[%emt 0:00:03]} 5. Nc3 {[%emt 0:01:30]} a6 {[%emt 0:00:09]} 6. Be2 {[%emt 0:00:21]} e5 {[%emt 0:00:17]} 7. Nb3 {[%emt 0:00:08]} Be7 {[%emt 0:00:07]} 8. O-O {[%emt 0:00:14] LiveBook: 4368 Games} O-O {[%emt 0:00:46]} 9. Bg5 {[%emt 0:00:55]} Be6 {[%emt 0:00:22]} 10. Bxf6 {[%emt 0:00:29]} Bxf6 {[%emt 0:00:07]} 11. Nd5 {[%emt 0:01:00] B92: Sicilian Najdorf: 6 Be2} Nd7 {[%emt 0:00:28]} (11... Nc6 12. c3 Bg5 13. a4 Rc8 14. a5 Ne7 15. Nb6 Rc6 16. Bf3 Nc8 17. Nd5 Ne7 18. Nb6 Nc8 19. Nd5 Ne7 20. Nb6 {½-½ (20) Almasi,Z (2695)-Ragger,M (2658) Germany 2014}) 12. Qd3 {[%emt 0:05:58]} Rc8 {[%emt 0:02:56]} 13. c3 {[%emt 0:01:04]} Bg5 {[%emt 0:07:55]} 14. Rfd1 {[%emt 0:05:27]} f5 $146 {[%emt 0:03:33]} ({Predecessor:} 14... g6 15. Bf3 Kh8 16. g3 b5 17. Bg2 f5 18. exf5 Bxf5 {0-1 (56) Yushinov,N (2184)-Polyakov,M (2400) Zolochiv 2017}) 15. Bf3 {[%emt 0:00:37]} Kh8 {[%emt 0:26:53]} 16. exf5 {[%emt 0:33:53]} Bxf5 {[%emt 0:00:30]} 17. Qe2 {[%emt 0:03:41]} b5 {[%emt 0:07:19]} 18. Bg4 {[%emt 0:09:49]} {Black should try} Bxg4 $14 {[%emt 0:05:29]} (18... Rc4 {[%emt 0:07:20]}) 19. Qxg4 {[%emt 0:00:12]} Rc4 {[%emt 0:02:21]} (19... Bh4) 20. Qe6 {[%emt 0:00:59]} Nb6 {[%emt 0:01:34]} 21. Nd2 {[%emt 0:07:02]} Nxd5 {[%emt 0:08:23]} (21... Rh4 $5 {[%cal Rh4h6]} 22. Nf3 Rh6 23. Nxg5 Qxg5 $11) 22. Qxd5 {[%emt 0:00:57]} Bxd2 {[%emt 0:00:22]} 23. Rxd2 {[%emt 0:00:12]} Rcf4 {[%emt 0:00:57]} 24. Rad1 {[%emt 0:02:30]} (24. Qc6 $16) 24... Qf6 {[%emt 0:07:25]} 25. Qxd6 {[%emt 0:02:04]} ({White should try} 25. Rf1 $16) 25... Qxd6 {[%emt 0:03:21]} 26. Rxd6 {[%emt 0:00:05]} Rxf2 {[%emt 0:00:09]} 27. Rd8 {[%emt 0:01:12]} Rf1+ {[%emt 0:01:06]} 28. Rxf1 {[%emt 0:00:08]} Rxd8 {[%emt 0:00:04]} 29. Re1 {[%emt 0:04:20]} Re8 {[%emt 0:01:46]} 30. Kf2 {[%emt 0:00:05]} g6 {[%emt 0:00:33]} 31. Rd1 {[%emt 0:00:14]} Rc8 {[%emt 0:02:15]} 32. Ke3 {[%emt 0:00:46]} Rc4 {[%emt 0:01:52]} 33. Rd5 {[%emt 0:01:53]} Rf4 {[%emt 0:05:43]} 34. Rxe5 {[%emt 0:00:19]} Rf1 {[%emt 0:00:10]} 35. Kd2 {[%emt 0:00:14]} Rb1 {[%emt 0:00:44]} (35... Kg7 $16 36. Re7+ Kh6) 36. Kc2 {[%emt 0:00:11]} Rh1 {[%emt 0:00:58]} 37. h3 {[%emt 0:00:06]} Rg1 {[%emt 0:00:10]} 38. Re2 {[%emt 0:00:06]} Kg7 {[%emt 0:00:29]} 39. b3 {[%emt 0:00:48]} Kf6 {[%emt 0:00:39]} 40. c4 {[%emt 0:00:00]} Ra1 {[%emt 0:00:00]} 41. Kc3 {[%emt 0:00:43]} bxc4 {[%emt 0:01:25]} 42. Kxc4 {[%emt 0:00:58]} Kf5 {[%emt 0:00:56]} 43. Kb4 {[%emt 0:00:20]} Rd1 {[%emt 0:00:16]} 44. Ka5 {[%emt 0:00:09]} Rd6 {[%emt 0:00:05]} 45. b4 {[%emt 0:00:07]} Kf4 $18 {[%emt 0:00:25]} 46. a4 1-0

[Event "FIDE WCCC U10 2018"]
[Site "Santiago de Compostela"]
[Date "2018.11.12"]
[Round "8"]
[White "Mardov, Dimitar"]
[Black "Giang, Tran Nam"]
[Result "1-0"]
[ECO "B40"]
[WhiteElo "1985"]
[BlackElo "1747"]
[Annotator "NA RC"]
[PlyCount "57"]
[EventDate "2018.11.04"]
[EventType "swiss"]
[EventCountry "ESP"]
[SourceTitle "playchess.com"]
[Source "ChessBase"]
[SourceQuality "1"]
[TimeControl "40/5400+30:1800+30"]

{[%evp 9,57,39,50,60,51,37,64,37,46,19,24,27,31,17,22,17,18,-22,0,0,16,12,284,258,520,519,554,543,356,604,577,568,659,754,820,797,1664,2472,2117,2401,1822,1995,6299,9875,2662,29980,2454,29982,29998,29999]} 1. e4 {[%emt 0:00:00]} c5 {[%emt 0:00:00]} 2. Nf3 {[%emt 0:00:00]} e6 {[%emt 0:00:00]} 3. d4 {[%emt 0:00:00]} cxd4 {[%emt 0:00:00]} 4. Nxd4 {[%emt 0:00:00]} Qb6 {[%emt 0:00:00]} 5. Nb3 {[%emt 0:00:41]} Qc7 {[%emt 0:00:06]} 6. Nc3 {[%emt 0:00:33]} a6 {[%emt 0:00:09]} 7. Bd3 {[%emt 0:08:08]} Nf6 {[%emt 0:00:11]} 8. O-O {[%emt 0:00:46]} d6 {[%emt 0:00:13]} 9. Qe2 {[%emt 0:00:49]} Be7 {[%emt 0:01:14]} 10. f4 {[%emt 0:02:27]} Nc6 {[%emt 0:00:16] B43: Sizilianisch (Paulsen-Variante)} 11. Bd2 {[%emt 0:01:27]} b5 {[%emt 0:04:29]} 12. a3 {[%emt 0:07:09]} O-O {[%emt 0:01:27]} 13. Rae1 {[%emt 0:01:03] LiveBook: 5 Games} Bb7 {[%emt 0:01:48]} 14. Rf3 {[%emt 0:10:40] [#]} Rac8 $146 {[%emt 0:06:17]} ({Vorgänger:} 14... g6 15. Rh3 Rfe8 16. e5 dxe5 17. fxe5 Nd7 18. Bf4 {0-1 (36) Upton,T (2250)-Timofeev,A (2661) Gothenburg 2005}) 15. Rh3 {[%emt 0:03:54]} Rfe8 $2 {[%emt 0:06:21]} (15... g6 $1 $11 {and Black has nothing to worry.}) 16. e5 {[%emt 0:02:55]} Nd7 $2 {[%emt 0:05:37]} (16... dxe5 17. fxe5 Qxe5) 17. Bxh7+ {[%emt 0:02:40]} Kf8 {[%emt 0:00:19]} 18. Qh5 {[%emt 0:14:19]} dxe5 {[%emt 0:04:03] [#]} 19. Bg8 $1 {[%emt 0:06:46]} Nd8 {[%emt 0:04:39]} 20. fxe5 {[%emt 0:03:35]} Bc5+ {[%emt 0:02:01]} 21. Kh1 {[%emt 0:02:04]} Qc6 {[%emt 0:02:40]} 22. Ne4 {[%emt 0:03:12]} f5 {[%emt 0:25:29]} 23. Qh8 {[%emt 0:04:52]} Nf7 {[%emt 0:06:12]} 24. Bxf7+ {[%emt 0:00:44]} Kxf7 {[%emt 0:00:20]} 25. Qh5+ {[%emt 0:01:43]} Kf8 {[%emt 0:00:48]} 26. Qg6 {[%emt 0:02:38]} Nxe5 {[%emt 0:03:48]} 27. Rh8+ {[%emt 0:00:55]} Ke7 {[%emt 0:00:10]} 28. Qxg7+ {[%emt 0:00:58]} Kd8 {[%emt 0:01:18]} 29. Bg5+ {[%emt 0:00:15]} 1-0

[Event "FIDE WCCC U10 2018"]
[Site "Santiago de Compostela"]
[Date "2018.11.12"]
[Round "8"]
[White "Pingin, Artem"]
[Black "Volkov, Maksim"]
[Result "1/2-1/2"]
[ECO "C11"]
[WhiteElo "1981"]
[BlackElo "1971"]
[Annotator "NA RC"]
[PlyCount "154"]
[EventDate "2018.11.04"]
[EventType "swiss"]
[EventCountry "ESP"]
[SourceTitle "playchess.com"]
[Source "ChessBase"]
[SourceQuality "1"]
[TimeControl "40/5400+30:1800+30"]

{[%evp 8,154,7,-6,7,-8,32767,32767,32767,32,45,23,20,-23,17,27,22,20,47,32,40,22,56,35,32767,62,62,64,58,35,52,-16,123,117,114,110,136,74,69,66,79,62,74,32767,87,79,75,64,83,88,106,100,97,109,173,179,189,32767,118,122,126,145,32767,145,32767,32767,32767,102,32767,32767,102,120,125,32767,138,157,32767,32767,220,32767,182,144,128,113,83,108,32767,138,32767,32767,32767,32767,90,31,70,60,79,71,68,53,29949,12843,12843,6111,12844,8,0,8,8,8,8,8,8,0,8,0,8,0,0,32767,32767,32767,32767,32767,32767,32767,32767,32767,32767,32767,32767,0,0,0,32767,32767,32767,32767,32767,32767,32767,32767,32767,32767,8,0,8,0,0]} 1. e4 {[%emt 0:00:00]} e6 {[%emt 0:00:01]} 2. d4 {[%emt 0:00:30]} d5 {[%emt 0:00:22]} 3. Nc3 {[%emt 0:00:30]} Nf6 {[%emt 0:00:52]} 4. e5 {[%emt 0:03:29]} Nfd7 {[%emt 0:00:08]} 5. Nce2 {[%emt 0:03:25]} c5 {[%emt 0:00:34]} 6. c3 {[%emt 0:00:08]} cxd4 {[%emt 0:00:13]} 7. cxd4 {[%emt 0:00:11]} f6 {[%emt 0:00:07] C11: French: Classical System: 4 e5 and 4 Bg5 dxe4} 8. exf6 {[%emt 0:14:06]} Nxf6 {[%emt 0:00:30]} 9. Nf3 {[%emt 0:00:07] LiveBook: 16 Games} Nc6 {[%emt 0:00:46]} 10. g3 {[%emt 0:01:34]} (10. Nc3 Bd6 11. Bb5 O-O 12. O-O Bd7 13. Re1 Qc7 14. h3 Rae8 15. Be3 {½-½ (41) Solodovnichenko,Y (2528)-Sumets,A (2569) Rochefort 2018}) 10... Bd6 {[%emt 0:05:12]} (10... Bb4+ $15 11. Nc3 Ne4) 11. Bg2 {[%emt 0:00:13]} O-O {[%emt 0:05:17]} 12. O-O {[%emt 0:00:28]} Bd7 {[%emt 0:02:33]} 13. Bf4 $146 {[%emt 0:03:39]} ({Predecessor:} 13. a3 a5 14. Nc3 Qb6 15. Re1 Rac8 16. Na4 Qc7 17. Qb3 b5 18. Nc3 a4 19. Qc2 Na5 {½-½ (19) Yilmaz,T-Wai,Y Pont Sainte Maxence 1974}) 13... Be8 {[%emt 0:01:45]} 14. Ng5 {[%emt 0:06:44]} Bf7 {[%emt 0:07:24]} 15. Bh3 {[%emt 0:07:22]} Re8 {[%emt 0:04:07]} 16. Re1 {[%emt 0:10:10]} h6 {[%emt 0:03:02]} 17. Nxf7 {[%emt 0:00:31]} Kxf7 {[%emt 0:00:04]} 18. Bxd6 {[%emt 0:00:46]} Qxd6 {[%emt 0:00:04]} 19. Nf4 {[%emt 0:00:14]} (19. Rc1 $14) 19... e5 {[%emt 0:10:38]} (19... Nxd4 $1 $11 20. Qxd4 (20. Qd3 e5 $17) 20... e5) 20. dxe5 {[%emt 0:02:05]} Nxe5 {[%emt 0:01:41]} 21. Bg2 {[%emt 0:02:11]} Rad8 {[%emt 0:06:28]} 22. Qb3 {[%emt 0:01:06]} Qb6 {[%emt 0:02:20]} 23. Qxb6 {[%emt 0:12:11]} axb6 {[%emt 0:00:05]} 24. Red1 {[%emt 0:00:40]} d4 {[%emt 0:04:55]} 25. Nd3 {[%emt 0:07:13]} Rd7 {[%emt 0:05:24]} 26. Nxe5+ {[%emt 0:02:18]} Rxe5 {[%emt 0:00:06]} 27. Rd3 {[%emt 0:00:05]} Re8 {[%emt 0:11:28]} 28. Rad1 {[%emt 0:00:31]} Red8 {[%emt 0:00:50]} 29. Rb3 {[%emt 0:00:56]} Rd6 {[%emt 0:01:56]} 30. Bxb7 {[%emt 0:01:10]} d3 {[%emt 0:02:48]} 31. Rd2 {[%emt 0:00:52]} Ng4 {[%emt 0:02:02]} 32. Be4 {[%emt 0:00:57]} Ne5 {[%emt 0:06:01]} 33. f4 {[%emt 0:01:27]} Rd4 {[%emt 0:01:21]} 34. fxe5 {[%emt 0:01:06]} Rxe4 {[%emt 0:00:03]} 35. Rbxd3 {[%emt 0:00:23]} Rxd3 {[%emt 0:00:07]} 36. Rxd3 {[%emt 0:00:03]} Rxe5 {[%emt 0:00:09]} 37. Kf2 {[%emt 0:01:05]} Rb5 {[%emt 0:01:58]} 38. b3 {[%emt 0:02:22]} Rc5 {[%emt 0:00:22]} 39. Ke3 {[%emt 0:02:41]} Ke6 {[%emt 0:01:09]} 40. Rd2 {[%emt 0:00:00]} Ke5 {[%emt 0:00:00]} 41. Kd3 {[%emt 0:04:30]} Rc1 {[%emt 0:09:43]} 42. Rc2 {[%emt 0:00:49]} Rd1+ {[%emt 0:01:30]} 43. Kc4 {[%emt 0:00:18]} Rd5 {[%emt 0:00:20]} 44. Re2+ {[%emt 0:00:09]} Kd6 {[%emt 0:00:04]} 45. b4 {[%emt 0:00:57]} b5+ {[%emt 0:00:48]} 46. Kc3 {[%emt 0:00:18]} Rf5 {[%emt 0:02:41]} 47. Rd2+ {[%emt 0:04:51]} Kc6 {[%emt 0:00:34]} 48. a3 {[%emt 0:00:43]} g5 {[%emt 0:03:38]} 49. h3 {[%emt 0:06:23]} h5 $1 {[%emt 0:02:02]} 50. Rd3 {[%emt 0:01:35]} h4 {[%emt 0:04:33]} ({Black should try} 50... Rf2 $11) 51. gxh4 {[%emt 0:01:08]} gxh4 {[%emt 0:02:10]} 52. Kd4 {[%emt 0:01:48]} Rd5+ {[%emt 0:01:39]} 53. Ke4 {[%emt 0:00:05]} Rxd3 $4 {[%emt 0:00:47]} (53... Rg5 $16) 54. Kxd3 Kd5 {[%emt 0:00:05]} 55. Kc3 {[%emt 0:00:20]} Ke4 {[%emt 0:00:06]} 56. a4 $2 {[%emt 0:01:31]} (56. Kb3 {setzt Matt} Kf3 57. a4 bxa4+ 58. Ka3 (58. Kxa4 Kg3 $14) 58... Kg3 59. b5 Kg2 60. b6 Kxh3 61. b7) 56... bxa4 {[%emt 0:00:05]} 57. Kc4 {[%emt 0:01:35]} a3 {[%emt 0:00:10]} 58. Kb3 {[%emt 0:00:04]} Kd5 {[%emt 0:00:05]} 59. Kxa3 {[%emt 0:00:04]} Kc6 $1 {[%emt 0:00:05]} 60. Kb3 {[%emt 0:00:08]} Kb5 {[%emt 0:00:04]} 61. Kc3 {[%emt 0:00:21]} Kc6 {[%emt 0:00:40]} 62. Kc4 {[%emt 0:00:04]} Kb6 {[%emt 0:00:05]} 63. b5 {[%emt 0:01:19]} Kc7 {[%emt 0:00:06]} 64. Kc5 {[%emt 0:00:04]} Kb7 {[%emt 0:00:03]} 65. b6 {[%emt 0:00:05]} Kb8 {[%emt 0:00:05]} 66. Kb5 {[%emt 0:00:19]} Kb7 {[%emt 0:00:04]} 67. Ka5 {[%emt 0:00:04]} Kb8 {[%emt 0:00:05]} 68. Ka6 {[%emt 0:00:24]} Ka8 {[%emt 0:00:05]} 69. Kb5 {[%emt 0:00:06]} (69. b7+ $16 Kb8 70. Kb6) 69... Kb7 {[%emt 0:00:04]} 70. Kc5 {[%emt 0:00:04]} Kb8 {[%emt 0:00:05]} 71. Kd5 {[%emt 0:00:05]} Kb7 {[%emt 0:00:04]} 72. Ke5 {[%emt 0:00:05]} Kxb6 {[%emt 0:00:04]} 73. Kf5 {[%emt 0:00:03]} Kc6 {[%emt 0:00:06]} 74. Kg5 {[%emt 0:00:04]} Kd7 {[%emt 0:00:04]} 75. Kxh4 {[%emt 0:00:03]} Ke7 {[%emt 0:00:05]} 76. Kg5 {[%emt 0:00:27]} Kf7 {[%emt 0:00:07]} 77. Kh6 $11 {[%emt 0:00:07]} Kg8 {[%emt 0:00:05]} 1/2-1/2

[Event "FIDE WCCC U10 2018"]
[Site "Santiago de Compostela"]
[Date "2018.11.12"]
[Round "8"]
[White "Vagman, Roy"]
[Black "Jin Yueheng"]
[Result "0-1"]
[ECO "A05"]
[WhiteElo "1970"]
[BlackElo "1914"]
[Annotator "NA RC"]
[PlyCount "78"]
[EventDate "2018.11.04"]
[EventType "swiss"]
[EventCountry "ESP"]
[SourceTitle "playchess.com"]
[Source "ChessBase"]
[SourceQuality "1"]
[TimeControl "40/5400+30:1800+30"]

{[%evp 8,78,20,18,40,17,40,28,21,18,38,35,47,41,51,55,58,22,32767,32767,32767,-12,32767,32767,32767,32767,32767,-16,-6,-16,0,-7,-12,-15,7,-16,15,8,16,-46,-22,-60,-41,-89,-101,-109,-52,-62,-77,-89,-78,-125,-111,-163,-154,-202,-261,-276,32767,-217,-372,-341,-378,-613,-759,32767,32767,32767,-1774,32767,32767,-5002,-2498]} 1. Nf3 {[%emt 0:00:00]} Nf6 {[%emt 0:00:00]} 2. g3 {[%emt 0:00:42]} g6 {[%emt 0:00:00]} 3. Bg2 {[%emt 0:00:27]} Bg7 {[%emt 0:00:00]} 4. O-O {[%emt 0:00:47]} O-O {[%emt 0:00:00]} 5. c4 {[%emt 0:01:21]} d6 {[%emt 0:00:00]} 6. Nc3 {[%emt 0:01:02]} c6 {[%emt 0:01:18]} 7. d4 {[%emt 0:01:54]} Nbd7 {[%emt 0:01:04]} 8. e4 {[%emt 0:00:51]} e5 {[%emt 0:00:16]} 9. b3 {[%emt 0:01:32]} Qa5 {[%emt 0:02:47]} 10. Bb2 {[%emt 0:01:56] LiveBook: 4 Games E68: King's Indian: Fianchetto: 6...Nbd7 7 0-0 e5 8 e4} Rd8 {[%emt 0:01:42]} (10... a6 11. a3 Qc7 12. Rc1 Re8 13. Re1 Qb8 14. Qc2 b5 15. c5 Bb7 16. cxd6 exd4 17. Nxd4 Qxd6 {1-0 (28) Azaladze,S (2499)-Hossain,E (2423) Mumbai 2015}) 11. Qc2 {[%emt 0:04:14]} Nf8 {[%emt 0:07:29]} 12. dxe5 $146 {[%emt 0:05:36]} ({Predecessor:} 12. Rad1 Bg4 13. Ne2 Re8 14. h3 Bxf3 15. Bxf3 Ne6 16. Rfe1 Rad8 17. Bg2 Nh5 {½-½ (78) Mamatkulova,M (2091)-Shaymuratov,I (2197) Tashkent 2011}) 12... dxe5 {[%emt 0:00:04]} 13. Rad1 {[%emt 0:00:23]} Bg4 {[%emt 0:00:05]} 14. a3 {[%emt 0:08:44]} Bxf3 {[%emt 0:00:06]} 15. Bxf3 {[%emt 0:00:12]} Ne6 {[%emt 0:00:14]} 16. b4 {[%emt 0:00:34]} Qc7 {[%emt 0:00:04]} 17. Ne2 {[%emt 0:02:19]} b6 {[%emt 0:14:10]} 18. Nc1 {[%emt 0:13:04]} a5 {[%emt 0:05:27]} 19. Bg2 {[%emt 0:06:19]} Ne8 {[%emt 0:04:59]} 20. h4 {[%emt 0:04:40]} c5 {[%emt 0:07:05]} 21. Rxd8 {[%emt 0:09:18]} Qxd8 {[%emt 0:00:40]} 22. bxc5 {[%emt 0:03:03]} bxc5 {[%emt 0:01:50]} 23. Ne2 {[%emt 0:00:32]} Nd4 {[%emt 0:00:19]} 24. Nxd4 {[%emt 0:01:07]} cxd4 {[%emt 0:01:37]} 25. Rd1 {[%emt 0:01:44]} (25. c5 $11 {bleibt in der Remisbreite.}) 25... Qc7 {[%emt 0:00:28]} 26. Bf1 {[%emt 0:00:45]} Qc5 {[%emt 0:00:24]} 27. Bd3 {[%emt 0:02:24]} Nd6 {[%emt 0:00:44]} 28. Kg2 {[%emt 0:02:23]} Rc8 {[%emt 0:01:26]} 29. Qe2 {[%emt 0:01:40]} Bh6 {[%emt 0:02:09]} 30. f4 {[%emt 0:07:21]} exf4 {[%emt 0:10:59]} 31. g4 {[%emt 0:00:51]} Bg7 {[%emt 0:02:40]} ({Less strong is} 31... Nxc4 32. Bxc4 Qxc4 33. Qxc4 $15) 32. Rc1 {[%emt 0:03:01]} Re8 {[%emt 0:01:52]} 33. Qf3 {[%emt 0:00:24]} Be5 {[%emt 0:01:18]} 34. Rc2 {[%emt 0:03:21]} Rb8 {[%emt 0:06:23]} 35. Be2 $2 {[%emt 0:04:44] [#]} (35. Bc1) 35... d3 $1 {[%emt 0:00:32]} 36. Bxe5 {[%emt 0:01:11]} dxc2 {[%emt 0:00:45]} 37. Qxf4 {[%emt 0:00:44]} c1=Q {[%emt 0:00:52]} (37... Rb1 $142 38. Qf2 c1=Q 39. Qxc5 Qh1+ 40. Kf2 Qg1+ 41. Kf3 Rb3+ 42. Bc3 Rxc3+ 43. Kf4 Qxc5 44. Bf3 f6 45. g5 {[#]} Nxe4 $1 {[%mdl 512]} 46. Bxe4 Qf2+ 47. Kg4 Qg3#) 38. Qxc1 {[%emt 0:01:12]} Qxe5 {[%emt 0:00:09]} 39. c5 {[%emt 0:02:15]} Nxe4 $19 {[%emt 0:00:53]} 0-1